[Event "FIDE WYCC Open U14 2023"]
[Site "Montesilvano"]
[Date "2023.11.16"]
[Round "4.4"]
[White "Farias, David Nuno M E"]
[Black "Uskov, Artem"]
[Result "1-0"]
[ECO "B32"]
[WhiteElo "2149"]
[BlackElo "2380"]
[Annotator "RC"]
[PlyCount "159"]
[EventDate "2023.11.13"]
[EventType "swiss"]
[EventCountry "ITA"]
[SourceTitle "playchess.com"]
[Source "ChessBase"]
[SourceQuality "1"]
[TimeControl "40/5400+30:1800+30"]

1. e4 {[%emt 0:00:03]} c5 {[%emt 0:01:33]} 2. Nf3 {[%emt 0:00:14]} Nc6 {[%emt 0:00:04]} 3. d4 {[%emt 0:00:11]} cxd4 {[%emt 0:00:05]} 4. Nxd4 {[%emt 0:00:07]} Qb6 {[%emt 0:00:03]} 5. Nb3 {[%emt 0:04:44]} Nf6 {[%emt 0:00:16]} 6. Nc3 {[%emt 0:02:55]} e6 {[%emt 0:00:12]} 7. a3 {[%emt 0:07:44]} Qc7 {[%emt 0:03:47]} 8. Be3 {[%emt 0:04:34]} a6 {[%emt 0:00:31]} 9. Be2 {[%emt 0:08:15]} Be7 {[%emt 0:00:49]} 10. O-O {[%emt 0:01:01]} b5 {[%emt 0:00:19]} 11. f4 {[%emt 0:02:00]} d6 {[%emt 0:03:14]} 12. Bf3 {[%emt 0:03:01]} Bb7 {[%emt 0:00:30]} 13. Qe2 {[%emt 0:06:40]} O-O {[%emt 0:00:12]} 14. Rad1 {[%emt 0:03:03]} Rac8 {[%emt 0:01:50]} 15. Qf2 {[%emt 0:07:49]} Nd7 {[%emt 0:00:52]} 16. Rd3 {[%emt 0:08:17]} b4 {[%emt 0:05:07]} 17. Na4 {[%emt 0:04:32]} a5 {[%emt 0:01:32]} 18. Rfd1 {[%emt 0:09:26]} Ba6 {[%emt 0:01:48]} 19. R3d2 {[%emt 0:00:58]} Rb8 {[%emt 0:10:37]} 20. e5 {[%emt 0:03:39]} d5 {[%emt 0:00:38]} 21. axb4 {[%emt 0:03:02]} Rxb4 {[%emt 0:03:20]} 22. Nac5 {[%emt 0:02:00]} Bc4 {[%emt 0:04:17]} 23. Nxd7 {[%emt 0:01:56]} Qxd7 {[%emt 0:00:09]} 24. Nc5 {[%emt 0:01:10]} Qc8 {[%emt 0:00:51]} 25. c3 {[%emt 0:01:54]} Rb5 {[%emt 0:00:56]} 26. Nd3 {[%emt 0:02:00]} a4 {[%emt 0:00:43]} 27. Ra1 {[%emt 0:01:25]} Na5 {[%emt 0:10:20]} 28. Bd1 {[%emt 0:03:59]} Bb3 {[%emt 0:01:13]} 29. Bd4 {[%emt 0:01:16]} Nc4 {[%emt 0:02:12]} 30. Re2 {[%emt 0:01:21]} Qd7 {[%emt 0:03:51]} 31. Qe1 {[%emt 0:02:49]} Ra8 {[%emt 0:01:27]} 32. f5 {[%emt 0:01:57]} exf5 {[%emt 0:00:26]} 33. e6 {[%emt 0:00:42]} fxe6 {[%emt 0:00:06]} 34. Rxe6 {[%emt 0:00:15]} Bf8 {[%emt 0:00:06]} 35. Bxb3 {[%emt 0:01:38]} Rxb3 {[%emt 0:00:08]} 36. Nc5 {[%emt 0:00:48]} Bxc5 37. Bxc5 h6 {[%emt 0:33:27]} 38. Re7 {[%emt 0:00:33]} Qc6 {[%emt 0:00:03]} 39. Bd4 {[%emt 0:00:12]} Rb7 {[%emt 0:00:03]} 40. b3 {[%emt 0:00:00]} Nb2 {[%emt 0:00:00]} 41. Rxb7 {[%emt 0:11:43]} Qxb7 {[%emt 0:02:25]} 42. bxa4 {[%emt 0:03:07]} Nc4 {[%emt 0:01:02]} 43. Qe6+ {[%emt 0:03:19]} Qf7 {[%emt 0:00:14]} 44. Qc6 {[%emt 0:00:51]} Re8 {[%emt 0:04:36]} 45. a5 {[%emt 0:02:08]} Re6 {[%emt 0:00:16]} 46. Qc8+ {[%emt 0:01:10]} Re8 {[%emt 0:03:30]} 47. Qc5 {[%emt 0:00:52]} Kh7 {[%emt 0:02:32]} 48. a6 {[%emt 0:05:01]} Nd2 {[%emt 0:00:43]} 49. Qb5 {[%emt 0:01:40]} Qg6 {[%emt 0:00:10]} 50. Qxd5 {[%emt 0:01:56]} Re2 {[%emt 0:00:30]} 51. Qb7 {[%emt 0:02:15]} f4 {[%emt 0:05:11]} 52. Qxg7+ {[%emt 0:03:41]} Qxg7 {[%emt 0:00:20]} 53. Bxg7 {[%emt 0:00:11]} f3 {[%emt 0:02:12]} 54. gxf3 {[%emt 0:00:38]} Nxf3+ {[%emt 0:00:20]} 55. Kf1 {[%emt 0:00:16]} Rxh2 {[%emt 0:01:56]} 56. Ra4 {[%emt 0:00:55]} Nd2+ {[%emt 0:04:17]} 57. Kg1 {[%emt 0:00:07]} Nf3+ {[%emt 0:00:04]} 58. Kf1 {[%emt 0:00:01]} Nd2+ {[%emt 0:00:09]} 59. Ke1 {[%emt 0:00:05]} Nf3+ {[%emt 0:00:04]} 60. Kd1 {[%emt 0:00:24]} Rd2+ {[%emt 0:00:24]} 61. Kc1 {[%emt 0:00:20]} Rd8 {[%emt 0:00:02]} 62. a7 {[%emt 0:02:04]} Ra8 {[%emt 0:00:01]} 63. Bf8 {[%emt 0:00:33]} Ne5 {[%emt 0:00:27]} 64. Kc2 {[%emt 0:00:27]} Nd7 {[%emt 0:01:09]} 65. Bd6 {[%emt 0:00:18]} h5 {[%emt 0:00:31]} 66. Bg3 {[%emt 0:00:43]} Kg6 {[%emt 0:01:25]} 67. Bf2 {[%emt 0:00:28]} Kf7 {[%emt 0:00:08]} 68. Rh4 {[%emt 0:00:34]} Nf6 {[%emt 0:00:12]} 69. Rb4 {[%emt 0:00:26]} Nd7 {[%emt 0:00:03]} 70. Re4 {[%emt 0:00:33]} Nf6 {[%emt 0:00:25]} 71. Rb4 {[%emt 0:00:28]} Nd7 {[%emt 0:00:05]} 72. Rb7 {[%emt 0:00:31]} Ke6 {[%emt 0:00:07]} 73. c4 {[%emt 0:00:31]} Rf8 {[%emt 0:02:14]} 74. Kc3 {[%emt 0:00:31]} Kd6 {[%emt 0:03:31]} 75. Bg3+ {[%emt 0:00:27]} Ke6 {[%emt 0:00:41]} 76. Bb8 {[%emt 0:00:32]} Rf3+ {[%emt 0:00:40]} 77. Kb4 {[%emt 0:00:11]} Nc5 {[%emt 0:01:21]} 78. a8=Q {[%emt 0:00:35]} Nd3+ {[%emt 0:00:08]} 79. Ka5 {[%emt 0:00:20]} Rf5+ {[%emt 0:00:21]} 80. Rb5 {[%emt 0:00:14]} 1-0

[Event "FIDE WYCC Open U14 2023"]
[Site "Montesilvano"]
[Date "2023.11.16"]
[Round "4.5"]
[White "Sowinski, Pawel"]
[Black "Warchol, Kamil"]
[Result "1-0"]
[ECO "A07"]
[WhiteElo "2347"]
[BlackElo "2095"]
[Annotator "RC"]
[PlyCount "97"]
[EventDate "2023.11.13"]
[EventType "swiss"]
[EventCountry "ITA"]
[SourceTitle "playchess.com"]
[Source "ChessBase"]
[SourceQuality "1"]
[TimeControl "40/5400+30:1800+30"]

1. Nf3 {[%emt 0:00:03]} d5 {[%emt 0:00:19]} 2. g3 {[%emt 0:00:15]} Nf6 {[%emt 0:01:15]} 3. Bg2 {[%emt 0:00:13]} c6 {[%emt 0:01:10]} 4. O-O {[%emt 0:00:08]} Bg4 {[%emt 0:01:01]} 5. c4 {[%emt 0:02:16]} e6 {[%emt 0:04:15]} 6. Qb3 {[%emt 0:02:07]} Qb6 {[%emt 0:03:26]} 7. Qc2 {[%emt 0:00:34]} Be7 {[%emt 0:03:15]} 8. d3 {[%emt 0:00:45]} Nbd7 {[%emt 0:01:20]} 9. cxd5 {[%emt 0:01:28]} exd5 {[%emt 0:06:18]} 10. e4 {[%emt 0:01:19]} Bxf3 {[%emt 0:05:44]} 11. Bxf3 {[%emt 0:00:08]} O-O {[%emt 0:00:52]} 12. Nc3 {[%emt 0:03:30]} dxe4 {[%emt 0:14:13]} 13. dxe4 {[%emt 0:00:16]} Rfd8 {[%emt 0:03:12]} 14. Bf4 {[%emt 0:02:38]} Qa5 {[%emt 0:03:03]} 15. a3 {[%emt 0:08:05]} Ne5 {[%emt 0:07:05]} 16. Be2 {[%emt 0:01:36]} Rac8 {[%emt 0:04:07]} 17. b4 {[%emt 0:01:04]} Qc7 {[%emt 0:01:27]} 18. Rac1 {[%emt 0:03:06]} Qb8 {[%emt 0:03:36]} 19. Kg2 {[%emt 0:13:46]} h6 {[%emt 0:03:20]} 20. h3 {[%emt 0:02:31]} Qd6 {[%emt 0:06:54]} 21. Qb3 {[%emt 0:09:44]} g5 {[%emt 0:06:12]} 22. Be3 {[%emt 0:01:17]} Qe6 {[%emt 0:08:19]} 23. Qxe6 {[%emt 0:02:43]} fxe6 {[%emt 0:00:04]} 24. f4 {[%emt 0:01:36]} gxf4 {[%emt 0:01:35]} 25. gxf4 {[%emt 0:00:49]} Ng6 {[%emt 0:02:23]} 26. Bc4 {[%emt 0:00:18]} Nf8 {[%emt 0:00:55]} 27. f5 {[%emt 0:04:18]} N6d7 {[%emt 0:01:47]} 28. Bf4 {[%emt 0:09:35]} Nb6 {[%emt 0:02:26]} 29. Ba2 {[%emt 0:05:54]} Kh7 {[%emt 0:01:32]} 30. Rf3 {[%emt 0:12:44]} exf5 31. exf5 {[%emt 0:00:01]} Nbd7 {[%emt 0:03:37]} 32. Re1 {[%emt 0:01:16]} Bh4 {[%emt 0:00:21]} 33. Re2 {[%emt 0:02:44]} Re8 {[%emt 0:00:31]} 34. Rfe3 {[%emt 0:01:28]} Rxe3 {[%emt 0:00:46]} 35. Rxe3 {[%emt 0:00:01]} Kg7 {[%emt 0:00:44]} 36. Kf3 {[%emt 0:01:29]} Bf6 {[%emt 0:00:36]} 37. Ne4 {[%emt 0:01:50]} Re8 {[%emt 0:00:43]} 38. Re2 {[%emt 0:00:10]} Ne5+ {[%emt 0:00:26]} 39. Bxe5 {[%emt 0:00:04]} Bxe5 {[%emt 0:00:17]} 40. Rg2+ {[%emt 0:00:00]} Kh7 {[%emt 0:00:00]} 41. Rd2 {[%emt 0:08:03]} Kg7 {[%emt 0:05:02]} 42. h4 {[%emt 0:02:59]} Kh8 {[%emt 0:05:38]} 43. f6 {[%emt 0:02:32]} Rb8 {[%emt 0:02:11]} 44. Rg2 {[%emt 0:13:32]} Kh7 {[%emt 0:04:36]} 45. h5 {[%emt 0:05:05]} a6 {[%emt 0:01:14]} 46. Rg7+ {[%emt 0:00:16]} Kh8 {[%emt 0:00:02]} 47. Rg8+ {[%emt 0:00:06]} Kh7 {[%emt 0:00:03]} 48. f7 {[%emt 0:00:14]} Bg7 {[%emt 0:01:40]} 49. Nf6+ {[%emt 0:00:11]} 1-0

[Event "FIDE WYCC Open U14 2023"]
[Site "Montesilvano"]
[Date "2023.11.16"]
[Round "4.6"]
[White "Goh, Zi Han"]
[Black "Kazantzoglou, Stefanos"]
[Result "1/2-1/2"]
[ECO "E04"]
[WhiteElo "2333"]
[BlackElo "2031"]
[Annotator "RC"]
[PlyCount "46"]
[EventDate "2023.11.13"]
[EventType "swiss"]
[EventCountry "ITA"]
[SourceTitle "playchess.com"]
[Source "ChessBase"]
[SourceQuality "1"]
[TimeControl "40/5400+30:1800+30"]

1. d4 {[%emt 0:01:41]} d5 {[%emt 0:00:02]} 2. c4 {[%emt 0:00:11]} e6 {[%emt 0:00:09]} 3. Nf3 {[%emt 0:00:08]} Nf6 {[%emt 0:00:09]} 4. g3 {[%emt 0:00:07]} dxc4 {[%emt 0:00:16]} 5. Bg2 {[%emt 0:00:10]} a6 {[%emt 0:00:07]} 6. O-O {[%emt 0:00:16]} Nc6 {[%emt 0:00:15]} 7. e3 {[%emt 0:00:22]} Rb8 {[%emt 0:00:06]} 8. Qe2 {[%emt 0:00:55]} b5 {[%emt 0:00:28]} 9. b3 {[%emt 0:00:13]} cxb3 {[%emt 0:00:25]} 10. axb3 {[%emt 0:00:08]} Bb7 {[%emt 0:08:17]} 11. Bd2 {[%emt 0:00:17]} Bd6 {[%emt 0:04:17]} 12. Rc1 {[%emt 0:17:01]} Ne7 {[%emt 0:06:51]} 13. Ne1 {[%emt 0:08:50]} Ne4 {[%emt 0:06:30]} 14. Nd3 {[%emt 0:03:31]} O-O {[%emt 0:01:29]} 15. Be1 {[%emt 0:07:27]} Ng6 {[%emt 0:08:53]} 16. Nb4 {[%emt 0:12:20]} Qd7 {[%emt 0:06:10]} 17. Qc2 {[%emt 0:04:45]} Ng5 {[%emt 0:03:12]} 18. Nc6 {[%emt 0:00:40]} e5 {[%emt 0:01:21]} 19. h4 {[%emt 0:26:56]} Nh3+ {[%emt 0:00:17]} 20. Kh2 {[%emt 0:01:18]} Nxh4 {[%emt 0:00:04]} 21. gxh4 {[%emt 0:00:29]} exd4+ {[%emt 0:04:07]} 22. Kh1 {[%emt 0:07:14]} dxe3 {[%emt 0:02:08]} 23. fxe3 {[%emt 0:00:06]} Rbe8 1/2-1/2

[Event "FIDE WYCC Open U14 2023"]
[Site "Montesilvano"]
[Date "2023.11.16"]
[Round "4.7"]
[White "Hobson, Kenneth"]
[Black "Perossa, Nicolas"]
[Result "0-1"]
[ECO "C78"]
[WhiteElo "2142"]
[BlackElo "2330"]
[Annotator "RC"]
[PlyCount "106"]
[EventDate "2023.11.13"]
[EventType "swiss"]
[EventCountry "ITA"]
[SourceTitle "playchess.com"]
[Source "ChessBase"]
[SourceQuality "1"]
[TimeControl "40/5400+30:1800+30"]

1. e4 {[%emt 0:00:02]} e5 {[%emt 0:06:10]} 2. Nf3 {[%emt 0:00:06]} Nc6 {[%emt 0:00:07]} 3. Bb5 {[%emt 0:01:15]} a6 {[%emt 0:00:11]} 4. Ba4 {[%emt 0:00:06]} Nf6 {[%emt 0:00:23]} 5. O-O {[%emt 0:00:54]} b5 {[%emt 0:00:48]} 6. Bb3 {[%emt 0:00:05]} Bc5 {[%emt 0:00:09]} 7. c3 {[%emt 0:01:15]} d6 {[%emt 0:00:06]} 8. d4 {[%emt 0:01:00]} Bb6 {[%emt 0:00:02]} 9. Be3 {[%emt 0:00:33]} Bb7 {[%emt 0:13:44]} 10. Nbd2 {[%emt 0:01:18]} h6 {[%emt 0:10:35]} 11. d5 {[%emt 0:16:22]} Ne7 {[%emt 0:02:33]} 12. Bxb6 {[%emt 0:01:38]} cxb6 {[%emt 0:00:04]} 13. Ne1 {[%emt 0:09:57]} g5 {[%emt 0:12:47]} 14. Bc2 {[%emt 0:05:04]} Ng6 {[%emt 0:02:21]} 15. c4 {[%emt 0:02:13]} b4 {[%emt 0:25:19]} 16. Nd3 {[%emt 0:04:47]} a5 {[%emt 0:00:11]} 17. Re1 {[%emt 0:02:20]} Rc8 {[%emt 0:05:22]} 18. b3 {[%emt 0:02:38]} O-O {[%emt 0:12:27]} 19. Nf1 {[%emt 0:01:08]} Kh7 {[%emt 0:00:09]} 20. Ng3 {[%emt 0:02:13]} Ba6 {[%emt 0:03:59]} 21. Nb2 {[%emt 0:06:12]} Nh4 {[%emt 0:01:47]} 22. Bd3 {[%emt 0:01:35]} Nd7 {[%emt 0:01:09]} 23. Rc1 {[%emt 0:06:34]} Nc5 {[%emt 0:00:25]} 24. Bf1 {[%emt 0:05:20]} Rc7 {[%emt 0:00:25]} 25. Nd3 {[%emt 0:01:25]} Qd7 {[%emt 0:01:06]} 26. Qh5 {[%emt 0:02:01]} Bc8 {[%emt 0:00:31]} 27. h3 {[%emt 0:01:22]} Qe7 {[%emt 0:00:27]} 28. Nxc5 {[%emt 0:01:19]} bxc5 {[%emt 0:00:27]} 29. Be2 {[%emt 0:03:20]} Qf6 {[%emt 0:00:40]} 30. Bg4 {[%emt 0:00:42]} Bxg4 {[%emt 0:00:32]} 31. Qxg4 {[%emt 0:00:28]} Ra7 {[%emt 0:00:32]} 32. Nh5 {[%emt 0:01:24]} Qe7 {[%emt 0:00:31]} 33. g3 {[%emt 0:00:50]} f5 {[%emt 0:00:19]} 34. exf5 {[%emt 0:04:26]} Nxf5 {[%emt 0:00:16]} 35. Qe4 {[%emt 0:00:20]} Kh8 {[%emt 0:00:31]} 36. g4 {[%emt 0:03:42]} Nh4 {[%emt 0:00:26]} 37. Re3 {[%emt 0:01:14]} a4 {[%emt 0:00:45]} 38. Rf1 {[%emt 0:02:18]} axb3 {[%emt 0:00:12]} 39. axb3 {[%emt 0:00:14]} Qf7 {[%emt 0:00:38]} 40. f3 {[%emt 0:00:00]} Ra2 {[%emt 0:00:00]} 41. Rf2 {[%emt 0:03:34]} Ra1+ {[%emt 0:01:57]} 42. Kh2 {[%emt 0:01:05]} Rc1 {[%emt 0:08:33]} 43. Kg3 {[%emt 0:06:17]} Rh1 {[%emt 0:16:21]} 44. Ra2 {[%emt 0:02:19]} Rg1+ {[%emt 0:00:20]} 45. Kh2 {[%emt 0:00:14]} Rf1 {[%emt 0:00:12]} 46. Ra6 {[%emt 0:01:59]} Nxf3+ {[%emt 0:03:39]} 47. Rxf3 {[%emt 0:00:07]} Rxf3 {[%emt 0:00:07]} 48. Rxd6 {[%emt 0:00:59]} Rf2+ {[%emt 0:00:07]} 49. Kg1 {[%emt 0:00:31]} Rf1+ {[%emt 0:00:05]} 50. Kh2 {[%emt 0:00:06]} Qf2+ {[%emt 0:00:31]} 51. Qg2 {[%emt 0:00:07]} Qe3 {[%emt 0:00:49]} 52. Rd8 {[%emt 0:02:39]} R1f2 {[%emt 0:01:02]} 53. Rxf8+ {[%emt 0:01:15]} Rxf8 {[%emt 0:00:02]} 0-1

[Event "FIDE WYCC Open U14 2023"]
[Site "Montesilvano"]
[Date "2023.11.16"]
[Round "4.8"]
[White "Vingris, Mikelis"]
[Black "Lissillour, Baptiste"]
[Result "1-0"]
[ECO "B54"]
[WhiteElo "2127"]
[BlackElo "2298"]
[Annotator "RC"]
[PlyCount "123"]
[EventDate "2023.11.13"]
[EventType "swiss"]
[EventCountry "ITA"]
[SourceTitle "playchess.com"]
[Source "ChessBase"]
[SourceQuality "1"]
[TimeControl "40/5400+30:1800+30"]

1. e4 {[%emt 0:02:48]} c5 {[%emt 0:00:48]} 2. Nf3 {[%emt 0:00:05]} d6 {[%emt 0:00:03]} 3. d4 {[%emt 0:00:04]} cxd4 {[%emt 0:00:04]} 4. Nxd4 {[%emt 0:00:03]} Nf6 {[%emt 0:00:07]} 5. Bd3 {[%emt 0:00:04]} g6 {[%emt 0:03:45]} 6. h3 {[%emt 0:02:43]} Bg7 {[%emt 0:00:45]} 7. Be3 {[%emt 0:01:15]} Nc6 {[%emt 0:05:27]} 8. c4 {[%emt 0:00:50]} Ng4 {[%emt 0:03:45]} 9. hxg4 {[%emt 0:00:26]} Bxd4 {[%emt 0:00:05]} 10. Bxd4 {[%emt 0:08:41]} Nxd4 {[%emt 0:00:15]} 11. Nc3 {[%emt 0:03:37]} Qa5 {[%emt 0:06:16]} 12. f3 {[%emt 0:08:32]} Be6 {[%emt 0:18:06]} 13. Rc1 {[%emt 0:17:12]} Rc8 {[%emt 0:11:43]} 14. Qd2 {[%emt 0:12:07]} Nc6 {[%emt 0:01:13]} 15. b3 {[%emt 0:03:58]} Ne5 {[%emt 0:02:58]} 16. Be2 {[%emt 0:02:31]} Qc5 {[%emt 0:09:04]} 17. Rd1 {[%emt 0:10:16]} f6 {[%emt 0:09:19]} 18. Qd4 {[%emt 0:02:12]} Kf7 {[%emt 0:04:18]} 19. Nd5 {[%emt 0:02:00]} a6 {[%emt 0:04:40]} 20. Qxc5 {[%emt 0:06:50]} dxc5 {[%emt 0:03:28]} 21. Kf2 {[%emt 0:00:35]} Nc6 {[%emt 0:02:41]} 22. Nb6 {[%emt 0:01:32]} Rb8 {[%emt 0:03:17]} 23. f4 {[%emt 0:00:48]} Kg7 {[%emt 0:01:15]} 24. f5 {[%emt 0:02:12]} Bf7 {[%emt 0:04:21]} 25. Nd7 {[%emt 0:00:08]} Rbc8 {[%emt 0:02:58]} 26. Nxc5 {[%emt 0:01:09]} Rc7 {[%emt 0:00:53]} 27. Nd3 {[%emt 0:00:45]} e5 {[%emt 0:00:44]} 28. fxe6 {[%emt 0:01:54]} Bxe6 {[%emt 0:00:05]} 29. Nf4 {[%emt 0:00:06]} Bc8 {[%emt 0:00:35]} 30. Nd5 {[%emt 0:00:59]} Rf7 {[%emt 0:00:14]} 31. Kg3 {[%emt 0:01:59]} Re8 {[%emt 0:00:20]} 32. Bf3 {[%emt 0:00:44]} Re5 {[%emt 0:00:49]} 33. Nb6 {[%emt 0:01:36]} Be6 {[%emt 0:01:13]} 34. Rd6 {[%emt 0:00:09]} Re7 {[%emt 0:00:22]} 35. Rhd1 {[%emt 0:00:29]} Re8 {[%emt 0:01:11]} 36. Nd5 {[%emt 0:00:45]} Rf8 {[%emt 0:00:29]} 37. Nc7 {[%emt 0:01:30]} Bc8 {[%emt 0:00:06]} 38. a3 {[%emt 0:03:48]} Rf7 {[%emt 0:01:00]} 39. Nxa6 {[%emt 0:00:22]} Rg5 {[%emt 0:00:15]} 40. Nb4 {[%emt 0:00:00]} Ne5 {[%emt 0:00:00]} 41. Kf4 {[%emt 0:11:57]} Bxg4 {[%emt 0:07:51]} 42. Nd3 {[%emt 0:05:34]} h6 {[%emt 0:09:20]} 43. a4 {[%emt 0:07:18]} Kh7 {[%emt 0:01:54]} 44. Rd2 {[%emt 0:02:53]} Bc8 {[%emt 0:06:41]} 45. Nxe5 {[%emt 0:01:58]} Rxe5 {[%emt 0:00:25]} 46. Rxf6 {[%emt 0:02:20]} Ree7 {[%emt 0:01:20]} 47. Rxf7+ {[%emt 0:00:40]} Rxf7+ {[%emt 0:00:02]} 48. Ke3 {[%emt 0:00:30]} Re7 {[%emt 0:01:06]} 49. Rd8 {[%emt 0:00:31]} Bd7 {[%emt 0:01:24]} 50. Kd4 {[%emt 0:00:36]} Bc6 {[%emt 0:00:03]} 51. a5 {[%emt 0:01:41]} g5 {[%emt 0:00:15]} 52. g4 {[%emt 0:01:31]} Rf7 {[%emt 0:00:20]} 53. Ke3 {[%emt 0:00:05]} Bd7 {[%emt 0:03:50]} 54. e5 {[%emt 0:00:21]} h5 {[%emt 0:00:04]} 55. gxh5 {[%emt 0:00:32]} Bh3 {[%emt 0:00:01]} 56. Rb8 {[%emt 0:01:01]} Kh6 {[%emt 0:00:40]} 57. Rxb7 {[%emt 0:00:23]} Rf8 {[%emt 0:00:24]} 58. Rb6+ {[%emt 0:00:14]} Kh7 {[%emt 0:00:20]} 59. Be4+ {[%emt 0:00:20]} Kh8 {[%emt 0:00:06]} 60. a6 {[%emt 0:00:24]} Rf7 {[%emt 0:01:04]} 61. Rh6+ {[%emt 0:00:07]} Kg7 {[%emt 0:00:07]} 62. Rh7+ {[%emt 0:00:15]} 1-0

[Event "FIDE WYCC Open U14 2023"]
[Site "Montesilvano"]
[Date "2023.11.16"]
[Round "4.9"]
[White "Escudero Ribo, Eloi"]
[Black "Matyassy, Lazar"]
[Result "1/2-1/2"]
[ECO "A45"]
[WhiteElo "1929"]
[BlackElo "2281"]
[Annotator "RC"]
[PlyCount "110"]
[EventDate "2023.11.13"]
[EventType "swiss"]
[EventCountry "ITA"]
[SourceTitle "playchess.com"]
[Source "ChessBase"]
[SourceQuality "1"]
[TimeControl "40/5400+30:1800+30"]

1. d4 {[%emt 0:00:08]} Nf6 {[%emt 0:00:09]} 2. Bg5 {[%emt 0:00:09]} d5 {[%emt 0:00:16]} 3. Bxf6 {[%emt 0:00:09]} gxf6 {[%emt 0:00:05]} 4. e3 {[%emt 0:00:11]} c5 {[%emt 0:00:16]} 5. dxc5 {[%emt 0:00:08]} e6 {[%emt 0:04:38]} 6. Nc3 {[%emt 0:11:49]} Bxc5 {[%emt 0:03:35]} 7. Nf3 {[%emt 0:00:46]} f5 {[%emt 0:08:51]} 8. Qd2 {[%emt 0:07:33]} Nc6 {[%emt 0:14:33]} 9. O-O-O {[%emt 0:06:39]} Bd7 {[%emt 0:06:52]} 10. Ne2 {[%emt 0:11:59]} Qc7 {[%emt 0:07:27]} 11. Qc3 {[%emt 0:03:58]} Nb4 {[%emt 0:00:13]} 12. Kb1 {[%emt 0:04:37]} Rg8 {[%emt 0:09:15]} 13. Nf4 {[%emt 0:05:53]} Bd6 {[%emt 0:03:34]} 14. Nh5 {[%emt 0:02:54]} Qxc3 {[%emt 0:09:43]} 15. bxc3 {[%emt 0:00:22]} Nc6 {[%emt 0:00:27]} 16. Nf6+ {[%emt 0:00:40]} Ke7 {[%emt 0:00:02]} 17. Nxg8+ {[%emt 0:00:32]} Rxg8 {[%emt 0:00:04]} 18. g3 {[%emt 0:02:51]} Rc8 {[%emt 0:01:36]} 19. Nd4 {[%emt 0:07:44]} Ne5 {[%emt 0:01:50]} 20. h3 {[%emt 0:01:13]} Rxc3 {[%emt 0:01:31]} 21. Nb5 {[%emt 0:00:37]} Bxb5 {[%emt 0:00:56]} 22. Bxb5 {[%emt 0:00:17]} a6 {[%emt 0:00:50]} 23. Be2 {[%emt 0:01:27]} Rc6 {[%emt 0:05:01]} 24. c3 {[%emt 0:12:04]} Rxc3 {[%emt 0:01:21]} 25. Rc1 {[%emt 0:00:06]} Ra3 {[%emt 0:00:24]} 26. Kb2 {[%emt 0:01:17]} Ra5 {[%emt 0:03:14]} 27. Rc3 {[%emt 0:01:12]} Nd7 {[%emt 0:00:16]} 28. f4 {[%emt 0:02:08]} Nc5 {[%emt 0:02:01]} 29. Rc2 {[%emt 0:01:37]} Ne4 {[%emt 0:01:14]} 30. g4 {[%emt 0:04:11]} Ra3 {[%emt 0:05:00]} 31. Rc7+ {[%emt 0:02:02]} Kf6 {[%emt 0:01:01]} 32. Rxb7 {[%emt 0:00:40]} Rxe3 {[%emt 0:00:26]} 33. Bxa6 {[%emt 0:01:02]} Bxf4 {[%emt 0:00:20]} 34. Rb3 {[%emt 0:00:47]} Be5+ {[%emt 0:05:38]} 35. Kc2 {[%emt 0:00:01]} Nc3 {[%emt 0:03:33]} 36. gxf5 {[%emt 0:01:07]} exf5 {[%emt 0:00:51]} 37. Bd3 {[%emt 0:02:43]} Nxa2 {[%emt 0:00:44]} 38. Rb6+ {[%emt 0:00:59]} Ke7 {[%emt 0:00:55]} 39. Bxf5 {[%emt 0:02:09]} h5 {[%emt 0:00:45]} 40. Rb7+ {[%emt 0:00:00]} Kf6 {[%emt 0:00:00]} 41. Rf1 {[%emt 0:01:50]} Kg5 {[%emt 0:07:43]} 42. Rxf7 {[%emt 0:02:08]} Nb4+ {[%emt 0:07:18]} 43. Kd2 {[%emt 0:00:17]} Rg3 {[%emt 0:00:16]} 44. Be6 {[%emt 0:06:06]} Rg2+ {[%emt 0:01:32]} 45. R1f2 {[%emt 0:01:39]} Rxf2+ {[%emt 0:03:36]} 46. Rxf2 {[%emt 0:00:01]} Bd6 {[%emt 0:01:27]} 47. Kc3 {[%emt 0:01:21]} Kh4 {[%emt 0:01:59]} 48. Rf5 {[%emt 0:05:14]} Bc5 {[%emt 0:00:37]} 49. Bxd5 {[%emt 0:00:44]} Nxd5+ {[%emt 0:00:16]} 50. Rxd5 {[%emt 0:00:02]} Bf2 {[%emt 0:00:12]} 51. Rd3 {[%emt 0:00:39]} Bg3 {[%emt 0:00:07]} 52. Rd5 {[%emt 0:00:05]} Kxh3 {[%emt 0:00:19]} 53. Rxh5+ {[%emt 0:00:06]} Kg2 {[%emt 0:00:07]} 54. Rg5 {[%emt 0:00:13]} Kh2 {[%emt 0:01:21]} 55. Rxg3 {[%emt 0:00:41]} Kxg3 {[%emt 0:00:07]} 1/2-1/2

[Event "FIDE WYCC Open U14 2023"]
[Site "Montesilvano"]
[Date "2023.11.16"]
[Round "4.10"]
[White "Radzimski, Antoni"]
[Black "Kozlovic, Jernej"]
[Result "1/2-1/2"]
[ECO "A11"]
[WhiteElo "1904"]
[BlackElo "2263"]
[Annotator "RC"]
[PlyCount "63"]
[EventDate "2023.11.13"]
[EventType "swiss"]
[EventCountry "ITA"]
[SourceTitle "playchess.com"]
[Source "ChessBase"]
[SourceQuality "1"]
[TimeControl "40/5400+30:1800+30"]

1. c4 {[%emt 0:00:16]} c6 {[%emt 0:01:38]} 2. Nf3 {[%emt 0:01:02]} Nf6 {[%emt 0:03:13]} 3. e3 {[%emt 0:02:51]} d5 {[%emt 0:01:14]} 4. Qc2 {[%emt 0:02:15]} g6 {[%emt 0:04:39]} 5. d4 {[%emt 0:01:31]} Bf5 {[%emt 0:04:32]} 6. Bd3 {[%emt 0:01:45]} Bxd3 {[%emt 0:00:59]} 7. Qxd3 {[%emt 0:00:05]} Bg7 {[%emt 0:01:06]} 8. Nc3 {[%emt 0:01:39]} O-O {[%emt 0:00:42]} 9. O-O {[%emt 0:00:26]} Nbd7 {[%emt 0:05:25]} 10. b3 {[%emt 0:04:02]} Qc7 {[%emt 0:13:24]} 11. Bb2 {[%emt 0:03:33]} dxc4 {[%emt 0:04:10]} 12. Qxc4 {[%emt 0:06:35]} e5 {[%emt 0:04:42]} 13. dxe5 {[%emt 0:16:19]} Nxe5 {[%emt 0:00:47]} 14. Nxe5 {[%emt 0:00:28]} Qxe5 {[%emt 0:00:18]} 15. Rad1 {[%emt 0:01:18]} Rfd8 {[%emt 0:04:51]} 16. Rxd8+ {[%emt 0:08:17]} Rxd8 {[%emt 0:00:15]} 17. Rd1 {[%emt 0:00:24]} Rxd1+ {[%emt 0:01:16]} 18. Nxd1 {[%emt 0:00:02]} Qd6 {[%emt 0:10:50]} 19. Qe2 {[%emt 0:02:57]} Ne4 {[%emt 0:04:33]} 20. Bxg7 {[%emt 0:03:43]} Kxg7 {[%emt 0:00:11]} 21. f3 {[%emt 0:02:01]} Nc5 {[%emt 0:00:26]} 22. g3 {[%emt 0:01:31]} a5 {[%emt 0:01:52]} 23. Nf2 {[%emt 0:02:17]} f6 {[%emt 0:03:06]} 24. Qc2 {[%emt 0:02:53]} Qd5 {[%emt 0:06:22]} 25. Qc3 {[%emt 0:03:01]} b6 {[%emt 0:03:37]} 26. e4 {[%emt 0:02:05]} Qd6 {[%emt 0:02:31]} 27. Kg2 {[%emt 0:01:18]} Ne6 {[%emt 0:05:15]} 28. Ng4 {[%emt 0:03:23]} Nd4 {[%emt 0:00:21]} 29. Qe3 {[%emt 0:00:47]} Kg8 {[%emt 0:02:24]} 30. e5 {[%emt 0:06:08]} fxe5 {[%emt 0:00:19]} 31. Nxe5 {[%emt 0:00:16]} c5 {[%emt 0:03:52]} 32. Qe4 {[%emt 0:03:18]} 1/2-1/2